[Event "XVII Profigaia Open 2017"]
[Site "Gaia"]
[Date "2017.06.15"]
[Round "2"]
[White "Pipiras, Filipa Fortuna"]
[Black "Margarido, Jose Miguel Teixeir"]
[Result "0-1"]
[ECO "E11"]
[WhiteElo "1641"]
[BlackElo "2038"]
[Annotator "NA"]
[PlyCount "104"]
[EventDate "2017.??.??"]
[EventType "swiss"]
[EventCountry "POR"]
[SourceTitle "playchess.com"]
[Source "ChessBase"]
[SourceQuality "1"]
[TimeControl "5400+30"]

1. d4 {[%emt 0:00:02]} Nf6 {[%emt 0:00:04]} 2. c4 {[%emt 0:00:10]} e6 {[%emt 0:00:01]} 3. Nf3 {[%emt 0:00:12]} Bb4+ {[%emt 0:00:02]} 4. Nbd2 {[%emt 0:00:21]} b6 {[%emt 0:02:50]} 5. e3 {[%emt 0:00:52]} Bb7 {[%emt 0:00:21]} 6. Be2 {[%emt 0:00:28]} O-O {[%emt 0:01:09]} 7. O-O {[%emt 0:00:26]} d5 {[%emt 0:02:38]} 8. Ne5 $146 {[%emt 0:04:27] E14: Queen's Indian: Classical Variation (4 e3)} ({Predecessor:} 8. a3 Bxd2 9. Nxd2 Nbd7 10. b4 c5 11. dxc5 bxc5 12. Bb2 Qe7 13. cxd5 Nxd5 14. b5 Rfd8 15. Qc2 N7b6 {½-½ (64) Vorontsov,P (2462)-Cori Tello,J (2645) Merida 2016}) 8... Bd6 {[%emt 0:05:53]} 9. Ndf3 {[%emt 0:02:06]} Qe7 {[%emt 0:09:10]} 10. Qc2 {[%emt 0:01:41]} c5 {[%emt 0:02:56]} 11. dxc5 {[%emt 0:03:16]} Bxc5 {[%emt 0:00:58]} 12. Nd2 {[%emt 0:00:49]} Rc8 {[%emt 0:05:28]} 13. Qd1 {[%emt 0:02:35]} Bd6 {[%emt 0:02:57]} 14. Nef3 {[%emt 0:00:51]} Rd8 {[%emt 0:05:05]} 15. b3 {[%emt 0:04:29]} Nc6 {[%emt 0:10:58]} 16. Bb2 {[%emt 0:02:02]} Rac8 {[%emt 0:00:37]} 17. Rc1 {[%emt 0:05:09]} e5 {[%emt 0:01:25]} 18. cxd5 {[%emt 0:02:19]} Nxd5 {[%emt 0:00:17]} 19. Bc4 {[%emt 0:00:59]} Ba3 {[%emt 0:16:00]} 20. Bxa3 {[%emt 0:02:42]} Qxa3 {[%emt 0:00:01]} 21. Bxd5 {[%emt 0:01:44]} Rxd5 {[%emt 0:00:04]} 22. Nc4 {[%emt 0:00:18]} Qc5 {[%emt 0:06:46]} 23. Qe2 {[%emt 0:00:56]} Qe7 {[%emt 0:03:05]} 24. Rfd1 {[%emt 0:00:30]} Rcd8 {[%emt 0:08:11]} 25. Rxd5 {[%emt 0:01:37]} Rxd5 {[%emt 0:00:01]} 26. Rd1 {[%emt 0:00:22]} Qd7 {[%emt 0:00:28]} 27. Rxd5 {[%emt 0:00:39]} Qxd5 {[%emt 0:00:01]} 28. Qd2 {[%emt 0:00:23]} Qxd2 {[%emt 0:00:27]} 29. Nfxd2 {[%emt 0:00:25]} f6 {[%emt 0:01:50]} 30. Kf1 {[%emt 0:01:16]} Kf8 {[%emt 0:02:39]} 31. Ke2 {[%emt 0:01:34]} Ke7 {[%emt 0:00:58]} 32. f3 {[%emt 0:02:31]} Ba6 {[%emt 0:01:04]} 33. a3 $2 {[%emt 0:03:04]} (33. e4 $15) 33... b5 {[%emt 0:01:13]} 34. Nxe5 {[%emt 0:06:53]} Nxe5 {[%emt 0:01:23]} 35. Kd1 {[%emt 0:00:15]} Bc8 {[%emt 0:01:06]} 36. e4 {[%emt 0:01:17]} Be6 {[%emt 0:00:43]} 37. Kc2 {[%emt 0:00:15]} Kd6 {[%emt 0:00:17]} 38. h3 {[%emt 0:00:24]} g5 {[%emt 0:00:35]} 39. h4 {[%emt 0:01:04]} gxh4 {[%emt 0:01:33]} 40. f4 {[%emt 0:00:13]} Nc6 {[%emt 0:00:10]} 41. Nf3 {[%emt 0:00:43]} h3 {[%emt 0:02:55]} 42. f5 {[%emt 0:00:23]} hxg2 {[%emt 0:00:45]} 43. fxe6 {[%emt 0:00:18] [#]} Nd4+ $19 {[%emt 0:00:06]} 44. Nxd4 {[%emt 0:00:17]} g1=Q {[%emt 0:00:08]} 45. Nxb5+ {[%emt 0:00:13]} Kxe6 {[%emt 0:00:11]} 46. Nc7+ {[%emt 0:00:12]} Kf7 {[%emt 0:00:14]} 47. Nd5 {[%emt 0:00:15]} h5 {[%emt 0:00:02]} 48. Nf4 {[%emt 0:00:16]} Qf2+ {[%emt 0:00:03]} 49. Kd3 {[%emt 0:00:08]} Qxf4 {[%emt 0:00:01]} 50. b4 {[%emt 0:00:06]} h4 {[%emt 0:00:04]} 51. b5 {[%emt 0:00:05]} h3 {[%emt 0:00:03]} 52. a4 {[%emt 0:00:07]} h2 {[%emt 0:00:02]} 0-1

[Event "XVII Profigaia Open 2017"]
[Site "Gaia"]
[Date "2017.06.15"]
[Round "2"]
[White "Brandao, Alvaro Sousa"]
[Black "Santos, Ricardo"]
[Result "0-1"]
[ECO "B08"]
[WhiteElo "1605"]
[BlackElo "2088"]
[Annotator "NA"]
[PlyCount "68"]
[EventDate "2017.??.??"]
[EventType "swiss"]
[EventCountry "POR"]
[SourceTitle "playchess.com"]
[Source "ChessBase"]
[SourceQuality "1"]
[TimeControl "5400+30"]

1. e4 {[%emt 0:00:00]} d6 {[%emt 0:00:00]} 2. Nf3 {[%emt 0:00:00]} Nf6 {[%emt 0:00:24]} 3. Nc3 {[%emt 0:00:30]} g6 {[%emt 0:00:30]} 4. d4 {[%emt 0:00:30]} Bg7 {[%emt 0:00:30]} 5. Be3 {[%emt 0:02:38]} O-O {[%emt 0:00:00]} 6. h3 {[%emt 0:00:31]} c6 {[%emt 0:00:36]} 7. Be2 {[%emt 0:00:16]} Nbd7 {[%emt 0:00:37]} 8. O-O {[%emt 0:06:02]} e5 {[%emt 0:00:09]} 9. dxe5 {[%emt 0:00:30]} dxe5 {[%emt 0:00:20]} 10. Qd2 Qe7 {B08: Pirc Defence: Classical System} 11. a3 {[%emt 0:16:51]} Nc5 {[%emt 0:01:21]} 12. Bd3 $146 {[%emt 0:00:07]} ({Predecessor:} 12. Ng5 Ne6 13. Nxe6 Bxe6 14. Rfd1 Rfd8 15. Qe1 Nd7 16. Rd2 Bf6 17. Rad1 Bg5 18. Bf1 Nb6 19. Bxg5 Qxg5 20. Qe3 Qe7 21. a4 Rxd2 22. Qxd2 Qb4 23. b3 {½-½ (23) Spassky,B (2605)-Pfleger,H (2505) Germany 1983}) 12... b6 {[%emt 0:19:11]} 13. Rfd1 {[%emt 0:04:40]} Rd8 {[%emt 0:07:34]} 14. Qe2 {[%emt 0:00:02]} Nh5 {[%emt 0:01:08]} 15. Rab1 {[%emt 0:19:20]} ({Better is} 15. Bc4 $11) 15... Nf4 {[%emt 0:02:29]} 16. Bxf4 {[%emt 0:00:17]} exf4 {[%emt 0:00:06]} 17. e5 {[%emt 0:02:44]} Nxd3 {[%emt 0:01:19]} 18. cxd3 {[%emt 0:00:47]} Bf5 {[%emt 0:00:15]} (18... c5 $1 $15) 19. Rbc1 {[%emt 0:06:21]} Rd7 {[%emt 0:04:32]} 20. d4 {[%emt 0:01:29]} Rad8 {[%emt 0:00:44]} 21. Qc4 {[%emt 0:07:42]} c5 {[%emt 0:02:00]} 22. dxc5 {[%emt 0:02:19]} Bd3 {[%emt 0:10:42] [#]} (22... Rxd1+ $11 23. Rxd1 Rxd1+ 24. Nxd1 Qxc5 25. Qxf4 Qc2) 23. Qxf4 {[%emt 0:02:45]} (23. Rxd3 $142 $1 Rxd3 24. c6) 23... bxc5 {[%emt 0:00:05]} 24. Re1 {[%emt 0:01:52]} Rb7 {[%emt 0:00:35]} 25. Ne4 {[%emt 0:06:22]} Bxe4 {[%emt 0:01:12]} 26. Rxe4 {[%emt 0:01:02]} Rxb2 {[%emt 0:00:21]} 27. Rec4 {[%emt 0:00:37]} Rc8 {[%emt 0:01:37]} 28. Qe3 {[%emt 0:02:54]} Bf8 {[%emt 0:00:14]} 29. g4 {[%emt 0:03:03]} Qb7 {[%emt 0:01:59]} 30. h4 {[%emt 0:03:44]} Qd5 {[%emt 0:04:49]} 31. h5 {[%emt 0:01:13]} Rcb8 {[%emt 0:00:24]} 32. hxg6 {[%emt 0:00:52]} hxg6 {[%emt 0:00:13]} 33. Ng5 {[%emt 0:01:50] [#]} (33. e6 $11) 33... Be7 $11 {[%emt 0:03:07]} (33... Rb1 $1 $17 34. Kh2 Rxc1 35. Rxc1 Rb3) 34. f4 {[%emt 0:02:28]} Qg2# {[%emt 0:00:09]} 0-1

[Event "XVII Profigaia Open 2017"]
[Site "Gaia"]
[Date "2017.06.15"]
[Round "2"]
[White "Silva, Pedro Gil Ferreira "]
[Black "Paiva, Rodrigo Garcia"]
[Result "1-0"]
[ECO "C54"]
[WhiteElo "1592"]
[BlackElo "1075"]
[Annotator "NA"]
[PlyCount "59"]
[EventDate "2017.??.??"]
[EventType "swiss"]
[EventCountry "POR"]
[SourceTitle "playchess.com"]
[Source "ChessBase"]
[SourceQuality "1"]
[TimeControl "5400+30"]

1. e4 {[%emt 0:00:00]} e5 {[%emt 0:00:25]} 2. Nf3 {[%emt 0:00:00]} Nc6 {[%emt 0:00:01]} 3. Bc4 {[%emt 0:01:57]} Bc5 {[%emt 0:00:36]} 4. c3 {[%emt 0:02:08]} Nf6 {[%emt 0:00:49]} 5. d3 {[%emt 0:02:08]} d6 {[%emt 0:00:48]} 6. Nbd2 {[%emt 0:01:19]} Bd7 {[%emt 0:01:21]} 7. Bb3 {[%emt 0:03:47]} O-O {[%emt 0:01:20]} 8. O-O {[%emt 0:00:11]} Qe7 {[%emt 0:01:39]} 9. Re1 {[%emt 0:03:58]} h6 {[%emt 0:02:54]} 10. h3 {[%emt 0:01:12]} b5 {[%emt 0:01:18]} 11. Nf1 {[%emt 0:01:55]} a5 {[%emt 0:03:12]} 12. a4 {[%emt 0:01:10]} b4 {[%emt 0:01:11]} 13. Be3 {[%emt 0:02:07]} Bb6 {[%emt 0:03:47]} 14. Ng3 {[%emt 0:02:23]} Be6 {[%emt 0:01:07]} 15. d4 {[%emt 0:06:51]} exd4 {[%emt 0:05:05]} 16. Nxd4 {[%emt 0:00:11]} Nxd4 {[%emt 0:01:10]} 17. Bxd4 {[%emt 0:00:19]} c5 {[%emt 0:01:34]} 18. Be3 {[%emt 0:07:11]} Bxb3 {[%emt 0:01:18]} 19. Qxb3 {[%emt 0:00:41]} c4 {[%emt 0:00:12]} 20. Qxc4 {[%emt 0:01:53]} Bxe3 {[%emt 0:01:00]} 21. Rxe3 {[%emt 0:00:06]} Rab8 {[%emt 0:00:37]} 22. Qd3 {[%emt 0:00:51]} bxc3 {[%emt 0:02:49]} 23. bxc3 {[%emt 0:00:38]} Rfc8 {[%emt 0:01:57]} 24. Nf5 {[%emt 0:02:25]} Qe5 {[%emt 0:04:50]} 25. Qxd6 {[%emt 0:01:44]} Qxd6 {[%emt 0:00:23]} 26. Nxd6 {[%emt 0:00:07]} Rc6 {[%emt 0:00:14]} 27. Nb5 {[%emt 0:00:11]} Re8 {[%emt 0:01:47]} 28. f3 {[%emt 0:00:19]} g5 {[%emt 0:02:24]} 29. Rd3 {[%emt 0:03:28]} Kg7 {[%emt 0:02:00]} 30. Rb1 {[%emt 0:00:47]} 1-0

[Event "XVII Profigaia Open 2017"]
[Site "Gaia"]
[Date "2017.06.15"]
[Round "2"]
[White "Marinho, Antonio Pedro"]
[Black "De Sousa Da Silva, Armando"]
[Result "1/2-1/2"]
[ECO "B23"]
[WhiteElo "1574"]
[BlackElo "1926"]
[Annotator "NA"]
[PlyCount "94"]
[EventDate "2017.??.??"]
[EventType "swiss"]
[EventCountry "POR"]
[SourceTitle "playchess.com"]
[Source "ChessBase"]
[SourceQuality "1"]
[TimeControl "5400+30"]

1. e4 {[%emt 0:00:00]} c5 {[%emt 0:00:13]} 2. Nc3 {[%emt 0:00:00]} a6 {[%emt 0:00:18]} 3. g3 {[%emt 0:00:18]} b5 {[%emt 0:00:24]} 4. Bg2 {[%emt 0:01:04]} Bb7 {[%emt 0:00:06]} 5. d3 {[%emt 0:00:08]} e6 {[%emt 0:02:57]} 6. Be3 {[%emt 0:00:18] B23: Closed Sicilian: Lines without g3} (6. Nh3 b4 7. Ne2 d5 8. e5 Nc6 9. f4 Nh6 10. Nf2 Nf5 11. O-O Qb6 12. c3 Be7 13. g4 Nh4 14. Bh1 {0-1 (35) Yu,Y (2738)-Khismatullin,D (2639) Moscow 2017}) 6... d5 {[%emt 0:02:02] LiveBook: 3 Games} 7. exd5 {[%emt 0:01:40]} exd5 {[%emt 0:00:02] [#]} (7... Nf6 $11 {remains equal.}) 8. Qf3 {[%emt 0:03:46]} (8. Qe2 $1 $16) 8... Nf6 $146 {[%emt 0:03:10]} ({Predecessor:} 8... Ra7 9. Nxd5 Ne7 10. c4 Nxd5 11. cxd5 Nd7 12. Qe4+ Be7 13. Bg5 f6 {½-½ (28) Nguyen,Q-Luong,N Ho Chi Minh City 2001}) 9. Bg5 {[%emt 0:00:26]} Nbd7 {[%emt 0:08:24]} (9... Be7 $1 $11) 10. Nxd5 {[%emt 0:01:19]} Bxd5 {[%emt 0:00:21] [#]} 11. Qxd5 $1 {[%emt 0:00:16]} Qe7+ {[%emt 0:00:18]} 12. Ne2 {[%emt 0:00:20]} Nxd5 {[%emt 0:04:27]} 13. Bxe7 {[%emt 0:00:18]} Bxe7 {[%emt 0:02:10]} 14. Bxd5 {[%emt 0:00:10]} Ra7 {[%emt 0:00:07]} 15. O-O {[%emt 0:00:14]} O-O {[%emt 0:00:13]} 16. Nf4 {[%emt 0:00:34]} Bf6 {[%emt 0:01:34]} 17. c3 {[%emt 0:00:35]} Nb6 {[%emt 0:01:30]} 18. Bg2 {[%emt 0:00:18]} g6 {[%emt 0:00:51]} 19. Rfe1 {[%emt 0:00:11]} Na4 {[%emt 0:02:29]} 20. Rab1 {[%emt 0:01:16]} Rd7 {[%emt 0:08:20]} 21. Re2 {[%emt 0:03:35]} (21. Nd5 $16 Kg7 22. Be4) 21... Rfd8 {[%emt 0:00:43]} 22. c4 {[%emt 0:02:50]} Rd6 {[%emt 0:07:38]} ({Black should play} 22... bxc4 $11 23. dxc4 Rd1+ 24. Rxd1 Rxd1+ 25. Bf1 Bxb2) 23. Nd5 {[%emt 0:01:29]} Kg7 {[%emt 0:03:37]} 24. b4 {[%emt 0:01:45]} bxc4 {[%emt 0:12:05]} 25. dxc4 {[%emt 0:00:21]} cxb4 {[%emt 0:06:59]} 26. Rxb4 {[%emt 0:02:20]} Nc3 {[%emt 0:00:08]} 27. Rc2 {[%emt 0:02:43]} Nxd5 {[%emt 0:00:32]} 28. Bxd5 {[%emt 0:00:08]} Bd4 {[%emt 0:07:14]} 29. Rb7 {[%emt 0:01:28]} R8d7 {[%emt 0:02:42]} 30. Rxd7 {[%emt 0:00:24]} Rxd7 {[%emt 0:00:01]} 31. Kf1 {[%emt 0:01:17]} Bc5 {[%emt 0:04:23]} 32. Rb2 {[%emt 0:00:55]} Rc7 {[%emt 0:01:39]} 33. Rb7 {[%emt 0:00:18]} Rxb7 {[%emt 0:00:26]} 34. Bxb7 {[%emt 0:00:33]} a5 {[%emt 0:00:01]} 35. Ke2 {[%emt 0:00:16]} f5 {[%emt 0:05:01]} 36. f3 {[%emt 0:00:25]} Kf6 {[%emt 0:00:37]} 37. Kd3 {[%emt 0:00:18]} g5 {[%emt 0:02:50]} 38. h3 {[%emt 0:00:29]} Ke5 {[%emt 0:01:12]} 39. Bc6 {[%emt 0:00:53]} Bf2 {[%emt 0:00:59]} 40. g4 {[%emt 0:00:24]} f4 {[%emt 0:01:15]} 41. Kc3 {[%emt 0:00:29]} h6 {[%emt 0:00:50]} 42. Kb3 {[%emt 0:00:15]} Kd6 {[%emt 0:00:09]} 43. Bd5 {[%emt 0:00:18]} Be1 {[%emt 0:00:51]} 44. Kc2 {[%emt 0:03:46]} Ke5 {[%emt 0:00:19]} 45. Be4 {[%emt 0:00:25]} Kd4 {[%emt 0:00:37]} 46. Kb3 {[%emt 0:00:34]} Bd2 {[%emt 0:00:18]} 47. Kc2 {[%emt 0:01:02]} Be1 $11 {[%emt 0:00:11] Kd3+ Kd5 Kd4+} 1/2-1/2

[Event "XVII Profigaia Open 2017"]
[Site "Gaia"]
[Date "2017.06.15"]
[Round "2"]
[White "Sismeiro, Miguel"]
[Black "Duarte, Duarte"]
[Result "0-1"]
[ECO "B43"]
[WhiteElo "1528"]
[BlackElo "1916"]
[Annotator "NA"]
[PlyCount "68"]
[EventDate "2017.??.??"]
[EventType "swiss"]
[EventCountry "POR"]
[SourceTitle "playchess.com"]
[Source "ChessBase"]
[SourceQuality "1"]
[TimeControl "5400+30"]

1. e4 {[%emt 0:02:09]} c5 {[%emt 0:00:52]} 2. Nf3 {[%emt 0:00:30]} e6 {[%emt 0:00:30]} 3. d4 {[%emt 0:00:30]} cxd4 {[%emt 0:00:30]} 4. Nxd4 {[%emt 0:00:30]} a6 {[%emt 0:00:30]} 5. Nc3 {[%emt 0:00:30]} Qc7 {[%emt 0:00:00]} 6. Be2 {[%emt 0:00:01]} b5 {[%emt 0:00:00]} 7. O-O {[%emt 0:00:30]} Bb7 {[%emt 0:01:08]} 8. Bf3 {[%emt 0:03:15]} Bc5 {[%emt 0:07:51] B43: Sicilian: Kan Variation: 5 Nc3} (8... d6 9. Re1 Nd7 10. g3 Ngf6 11. Bg2 Be7 12. a3 O-O 13. g4 Nb6 14. g5 Nfd7 15. f4 Rfe8 16. f5 Bf8 17. fxe6 fxe6 {1-0 (36) Onischuk,V (2612)-Hou,Y (2671) Bastia 2015}) 9. Nb3 {[%emt 0:04:15]} Bd6 $146 {[%emt 0:08:20]} ({Predecessor:} 9... Bb6 10. Qe2 Ne7 11. Be3 Bxe3 12. Qxe3 O-O 13. Rad1 Ng6 14. Nc5 Bc6 15. Nd3 d6 16. Bh5 {1-0 (51) Fuskova,M (1969)-Bashaer,K (1630) Al Ain 2013}) 10. h3 {[%emt 0:12:33]} Ne7 {[%emt 0:02:25]} 11. Be3 {[%emt 0:02:42]} (11. Na5 $5 {[%cal Ra5b7]} Bh2+ 12. Kh1 $11) 11... O-O {[%emt 0:02:41]} 12. Bd4 {[%emt 0:06:38]} (12. Qd2 $11 {remains equal.}) 12... Nbc6 {[%emt 0:01:10]} 13. Nc5 $2 {[%emt 0:01:31]} (13. Bc5 $17 {is a better chance.} Bh2+ 14. Kh1) 13... Nxd4 {[%emt 0:01:18]} 14. Nxb7 {[%emt 0:00:31]} Nxf3+ {[%emt 0:00:17]} 15. Qxf3 {[%emt 0:00:06]} Qxb7 {[%emt 0:00:13]} 16. Rad1 {[%emt 0:00:16]} Be5 {[%emt 0:00:43]} 17. Rd3 {[%emt 0:00:50]} Bxc3 {[%emt 0:07:04]} 18. Rxc3 {[%emt 0:00:12]} Rac8 {[%emt 0:00:13]} 19. Rd1 {[%emt 0:00:06]} Rxc3 {[%emt 0:02:30]} 20. Qxc3 {[%emt 0:00:06]} d5 {[%emt 0:02:22]} 21. exd5 {[%emt 0:00:21]} Nxd5 {[%emt 0:00:16]} 22. Qe5 {[%emt 0:00:30]} h6 {[%emt 0:00:58]} 23. Rd3 {[%emt 0:01:13]} Qb8 24. Qd4 {[%emt 0:00:12]} Rc8 {[%emt 0:06:09]} 25. Rg3 {[%emt 0:00:27]} g6 {[%emt 0:00:37]} 26. c3 {[%emt 0:01:01]} Nf4 {[%emt 0:06:56]} 27. Qe3 {[%emt 0:00:28]} Rd8 {[%emt 0:00:11]} 28. Rf3 {[%emt 0:00:40]} Rd1+ {[%emt 0:00:23]} 29. Kh2 {[%emt 0:00:06]} Nd5+ {[%emt 0:00:08]} 30. Rg3 {[%emt 0:00:06]} Nxe3 {[%emt 0:00:10]} 31. fxe3 {[%emt 0:00:30]} Re1 {[%emt 0:00:30]} 32. h4 {[%emt 0:00:11]} Rxe3 {[%emt 0:00:08]} 33. Kg1 {[%emt 0:01:00]} Qxg3 {[%emt 0:00:10]} 34. a4 {[%emt 0:00:05]} Re1# 0-1

[Event "XVII Profigaia Open 2017"]
[Site "Gaia"]
[Date "2017.06.15"]
[Round "2"]
[White "Donghi, Fabio"]
[Black "Triunfante, Armando"]
[Result "0-1"]
[ECO "D37"]
[WhiteElo "1519"]
[BlackElo "1231"]
[Annotator "NA"]
[PlyCount "70"]
[EventDate "2017.??.??"]
[EventType "swiss"]
[EventCountry "POR"]
[SourceTitle "playchess.com"]
[Source "ChessBase"]
[SourceQuality "1"]
[TimeControl "5400+30"]

1. c4 {[%emt 0:00:00]} Nf6 {[%emt 0:00:46]} 2. d4 {[%emt 0:00:08]} d5 {[%emt 0:00:14]} 3. Nc3 {[%emt 0:00:31]} e6 {[%emt 0:00:33]} 4. Nf3 {[%emt 0:00:43]} h6 {[%emt 0:00:37]} 5. Bf4 {[%emt 0:01:01]} Bb4 6. Qc2 O-O {[%emt 0:06:23]} 7. g3 {[%emt 0:02:14]} c5 {[%emt 0:03:14]} 8. Bg2 {[%emt 0:03:25]} cxd4 {[%emt 0:00:45]} 9. Nxd4 {[%emt 0:01:33]} Qb6 {[%emt 0:00:54]} 10. Be3 {[%emt 0:03:56]} e5 {[%emt 0:01:48]} 11. Nf5 {[%emt 0:02:48]} d4 {[%emt 0:00:26]} 12. Bxh6 {[%emt 0:02:40]} Bxf5 {[%emt 0:09:02]} 13. Qxf5 {[%emt 0:01:06]} gxh6 {[%emt 0:00:11]} 14. O-O {[%emt 0:01:07]} dxc3 {[%emt 0:00:47]} 15. bxc3 {[%emt 0:00:45]} Bxc3 {[%emt 0:05:34]} 16. Rab1 {[%emt 0:00:29]} Bb4 {[%emt 0:09:31]} 17. a3 {[%emt 0:00:37]} a5 {[%emt 0:00:19]} 18. Rb2 {[%emt 0:02:42]} Nbd7 {[%emt 0:04:56]} 19. axb4 {[%emt 0:01:50]} a4 {[%emt 0:00:38]} 20. Ra2 {[%emt 0:01:19]} Qxb4 {[%emt 0:00:23]} 21. Rd1 {[%emt 0:01:37]} Qxc4 {[%emt 0:05:28]} 22. Be4 {[%emt 0:03:32]} Qxa2 {[%emt 0:07:30]} 23. Rxd7 {[%emt 0:00:16]} Qe6 {[%emt 0:01:02]} 24. Qxe6 {[%emt 0:00:59]} fxe6 {[%emt 0:00:24]} 25. Bb1 {[%emt 0:01:05]} Nxd7 {[%emt 0:00:12]} 26. Ba2 {[%emt 0:01:02]} b5 {[%emt 0:00:30]} 27. Bxe6+ {[%emt 0:00:13]} Rf7 {[%emt 0:00:18]} 28. Bxf7+ {[%emt 0:00:32]} Kxf7 {[%emt 0:00:15]} 29. Kf1 {[%emt 0:00:08]} a3 {[%emt 0:00:07]} 30. Ke1 {[%emt 0:00:09]} a2 {[%emt 0:00:04]} 31. Kd2 {[%emt 0:00:14]} a1=Q {[%emt 0:00:15]} 32. f4 {[%emt 0:00:32]} exf4 {[%emt 0:00:42]} 33. gxf4 {[%emt 0:01:35]} Qd4+ 34. Kc2 Ra2+ {[%emt 0:02:01]} 35. Kb3 {[%emt 0:01:07]} Qb2# {[%emt 0:00:35]} 0-1

[Event "XVII Profigaia Open 2017"]
[Site "Gaia"]
[Date "2017.06.15"]
[Round "2"]
[White "Moreira, Rafael Mota"]
[Black "Sousa, Hugo Carneiro"]
[Result "0-1"]
[ECO "C01"]
[WhiteElo "1478"]
[BlackElo "1877"]
[Annotator "NA"]
[PlyCount "94"]
[EventDate "2017.??.??"]
[EventType "swiss"]
[EventCountry "POR"]
[SourceTitle "playchess.com"]
[Source "ChessBase"]
[SourceQuality "1"]
[TimeControl "5400+30"]

1. e4 e6 2. d4 d5 3. exd5 exd5 4. Nf3 Nf6 5. Bd3 c5 6. dxc5 Bxc5 7. Qe2+ {C01: French: Exchange Variation} (7. O-O O-O 8. Nc3 Nc6 9. Bg5 h6 10. Bh4 Be6 11. a3 Be7 12. Re1 Qb6 13. b4 a6 14. Rb1 Qc7 15. Bg3 Bd6 16. Bxd6 Qxd6 17. Na4 {½-½ (52) Spraggett,K (2539)-Del Rio de Angelis,S (2527) Figueira da Foz 2016}) 7... Be6 8. O-O O-O 9. Bg5 {[%emt 0:22:20]} Nc6 {[%emt 0:11:12]} 10. Nc3 {[%emt 0:03:04]} Re8 {[%emt 0:03:36]} 11. Qd1 $146 {[%emt 0:06:26]} ({Predecessor:} 11. Qd2 Bb4 12. Qf4 Be7 13. Nb5 Rb8 14. c3 h6 15. Bxf6 Bxf6 {½-½ (33) Lopez de Turiso,J (2065)-Ramirez Garcia,J (2177) Madrid 2012}) 11... h6 {[%emt 0:15:44]} 12. Bh4 {[%emt 0:02:57]} g5 {[%emt 0:10:25]} 13. Bg3 {[%emt 0:04:56]} Bg4 {[%emt 0:01:45]} 14. Be2 {[%emt 0:02:39]} Qd7 {[%emt 0:02:51]} 15. Ne5 {[%emt 0:06:34]} Nxe5 {[%emt 0:02:36]} 16. Bxe5 {[%emt 0:00:47]} Rxe5 {[%emt 0:00:26]} 17. Bxg4 {[%emt 0:02:04]} Nxg4 {[%emt 0:01:15]} 18. Qf3 {[%emt 0:01:43]} Qf5 {[%emt 0:03:02]} 19. Rae1 {[%emt 0:03:28]} Qxf3 {[%emt 0:00:42]} 20. gxf3 {[%emt 0:00:17]} Rxe1 {[%emt 0:00:17]} 21. fxg4 {[%emt 0:00:38]} Rxf1+ {[%emt 0:00:10]} 22. Kxf1 {[%emt 0:00:06]} Rd8 {[%emt 0:00:10]} 23. Na4 {[%emt 0:00:26]} b6 {[%emt 0:00:09]} 24. Nc3 {[%emt 0:00:12]} Kg7 {[%emt 0:00:29]} 25. Nb5 {[%emt 0:00:11]} a6 {[%emt 0:00:30]} 26. Nc7 {[%emt 0:00:22]} a5 {[%emt 0:01:27]} 27. Nb5 {[%emt 0:00:08]} Rd7 {[%emt 0:00:17]} 28. a3 {[%emt 0:00:33]} Kg6 {[%emt 0:00:22]} 29. c3 {[%emt 0:00:23]} Bd6 {[%emt 0:00:17]} 30. Kg2 {[%emt 0:00:26]} Be5 {[%emt 0:00:10]} 31. h3 {[%emt 0:00:49]} f5 {[%emt 0:00:22]} 32. f3 {[%emt 0:00:09]} fxg4 {[%emt 0:00:13]} 33. hxg4 {[%emt 0:00:23]} d4 {[%emt 0:00:31]} 34. cxd4 {[%emt 0:00:11]} Bxd4 {[%emt 0:00:07]} 35. b4 {[%emt 0:00:29]} axb4 {[%emt 0:00:07]} 36. axb4 {[%emt 0:00:08]} Bb2 {[%emt 0:00:24]} 37. Kg3 {[%emt 0:00:20]} Be5+ {[%emt 0:00:30]} 38. Kf2 {[%emt 0:00:13]} Bf4 {[%emt 0:00:28]} 39. Nc3 {[%emt 0:00:27]} Rd2+ {[%emt 0:00:30]} 40. Ke1 {[%emt 0:00:28]} Rd4 {[%emt 0:01:01]} 41. b5 {[%emt 0:00:19]} Bd2+ {[%emt 0:00:11]} 42. Kf2 {[%emt 0:00:16]} Bxc3 {[%emt 0:00:06]} 43. Kg3 {[%emt 0:00:09]} Rb4 {[%emt 0:00:28]} 44. Kh3 {[%emt 0:00:13]} Rb2 {[%emt 0:00:27]} 45. f4 {[%emt 0:00:14]} gxf4 {[%emt 0:00:25]} 46. g5 {[%emt 0:00:24]} h5 {[%emt 0:00:12]} 47. Kh4 {[%emt 0:00:22]} Rh2# 0-1

[Event "XVII Profigaia Open 2017"]
[Site "Gaia"]
[Date "2017.06.15"]
[Round "2"]
[White "Clemente, Antonio"]
[Black "Jesus, Joao Pedro Mendes D"]
[Result "0-1"]
[ECO "A17"]
[WhiteElo "1393"]
[BlackElo "1868"]
[Annotator "NA"]
[PlyCount "60"]
[EventDate "2017.??.??"]
[EventType "swiss"]
[EventCountry "POR"]
[SourceTitle "playchess.com"]
[Source "ChessBase"]
[SourceQuality "1"]
[TimeControl "5400+30"]

{[%evp 8,54,-8,-25,0,-34,-22,-56,-13,32767,32767,32767,32767,32767,32767,-45,-43,32767,-14,-48,-28,-57,-54,32767,-50,32767,32767,-63,32767,32767,32767,32767,32767,-257,32767,-242,32767,32767,32767,32767,32767,32767,-128,-135,-147,-170,32767,-137,-168]} 1. c4 Nf6 2. Nc3 e6 3. d3 d5 {A17: English Opening: 1...Nf6 with ...Bb4} 4. cxd5 (4. Qc2 d4 5. Nd1 Nc6 6. g3 Bb4+ 7. Bd2 a5 8. Bg2 O-O 9. Nf3 e5 10. a3 Bc5 11. Bg5 {0-1 (51) Daudzvardis,J (2114)-Bernotas,A (2393) Riga 2017}) 4... exd5 5. d4 {LiveBook: 114 Games} c6 6. Nf3 Bd6 7. e3 Bg4 8. Be2 Qc7 $146 ({Predecessor:} 8... Nbd7 9. Nh4 Bxe2 10. Qxe2 g6 11. Nf3 {½-½ (59) Jakubowski,K (1334)-Petersohn,H (1688) Uckley 2000}) 9. h3 Bh5 10. a3 a5 11. b3 Nbd7 12. Bb2 Nf8 13. Rc1 (13. b4 $5) 13... Qe7 14. Ra1 (14. Nb1) 14... Ne6 15. O-O O-O (15... Bxf3 $5 16. Bxf3 Ng5 $11) 16. Re1 Nd7 17. Kh1 f5 18. Nb1 Nf6 19. Nbd2 Ne4 20. Nxe4 fxe4 21. Ne5 Bxe2 22. Qxe2 Bxe5 23. dxe5 Nc5 24. Qc2 Nd3 25. Rf1 Qh4 26. Kg1 $19 Rf5 27. Rad1 Raf8 28. Rd2 Rg5 29. Kh2 Rh5 30. e6 Rf3 0-1